[Event "Late-Titled-Tuesday-Blitz-October-10-2023"]
[Site "Chess.com"]
[Date "2023.10.10"]
[Round "9"]
[White "Alphafischer2019"]
[Black "AlivodicDario"]
[Result "1-0"]
[WhiteElo "2575"]
[BlackElo "2447"]
[TimeControl "180+1"]
[EndTime "15:39:52 PDT"]
[Termination "Alphafischer2019 won on time"]

1. e4 {[%clk 0:03:00.9]} 1... c5 {[%clk 0:02:58.6]} 2. Nf3 {[%clk 0:03:00.6]}
2... e6 {[%clk 0:02:59.3]} 3. Bd3 {[%clk 0:02:59.1]} 3... Nc6 {[%clk 0:02:55]}
4. O-O {[%clk 0:02:58.7]} 4... d5 {[%clk 0:02:51.1]} 5. c3 {[%clk 0:02:58.6]}
5... Nf6 {[%clk 0:02:50.3]} 6. exd5 {[%clk 0:02:57.6]} 6... exd5 {[%clk
0:02:50.2]} 7. Re1+ {[%clk 0:02:57.2]} 7... Be7 {[%clk 0:02:50.4]} 8. Bb5 {[%clk
0:02:57.9]} 8... O-O {[%clk 0:02:50]} 9. d4 {[%clk 0:02:58.6]} 9... Bg4 {[%clk
0:02:43.7]} 10. Be3 {[%clk 0:02:47.4]} 10... c4 {[%clk 0:02:38]} 11. Nbd2 {[%clk
0:02:40.3]} 11... Bd6 {[%clk 0:02:30]} 12. h3 {[%clk 0:02:38.7]} 12... Bh5
{[%clk 0:02:28.6]} 13. Ba4 {[%clk 0:02:36.3]} 13... Re8 {[%clk 0:02:23]} 14. Bc2
{[%clk 0:02:34.6]} 14... Bg6 {[%clk 0:02:18.9]} 15. b3 {[%clk 0:02:34.8]} 15...
b5 {[%clk 0:02:16.1]} 16. Bxg6 {[%clk 0:02:29.5]} 16... hxg6 {[%clk 0:02:15.8]}
17. b4 {[%clk 0:02:25.8]} 17... a5 {[%clk 0:02:13.5]} 18. a3 {[%clk 0:02:25.1]}
18... axb4 {[%clk 0:02:10.1]} 19. axb4 {[%clk 0:02:26]} 19... Qd7 {[%clk
0:02:02.2]} 20. Qc2 {[%clk 0:02:23.5]} 20... Qf5 {[%clk 0:01:58.2]} 21. Qb2
{[%clk 0:02:23.5]} 21... Qd3 {[%clk 0:01:55.5]} 22. Rxa8 {[%clk 0:02:21.5]}
22... Rxa8 {[%clk 0:01:56.4]} 23. Ra1 {[%clk 0:02:21.6]} 23... Rc8 {[%clk
0:01:30.8]} 24. Qc1 {[%clk 0:02:12.5]} 24... Ne4 {[%clk 0:01:24.5]} 25. Nxe4
{[%clk 0:02:12]} 25... Qxe4 {[%clk 0:01:16.4]} 26. Qb1 {[%clk 0:02:05.1]} 26...
Qxb1+ {[%clk 0:01:12.7]} 27. Rxb1 {[%clk 0:02:06]} 27... Ra8 {[%clk 0:01:13.1]}
28. Kf1 {[%clk 0:02:04.5]} 28... Ra3 {[%clk 0:01:11.8]} 29. Bd2 {[%clk
0:02:04.7]} 29... f6 {[%clk 0:01:08.3]} 30. Ke1 {[%clk 0:02:04]} 30... Kf7
{[%clk 0:01:07]} 31. Kd1 {[%clk 0:02:02.6]} 31... g5 {[%clk 0:00:42.5]} 32. Ne1
{[%clk 0:02:01.5]} 32... Ne7 {[%clk 0:00:36]} 33. Nc2 {[%clk 0:02:01.6]} 33...
Ra8 {[%clk 0:00:35.2]} 34. Ra1 {[%clk 0:02:01.8]} 34... Rxa1+ {[%clk 0:00:35.3]}
35. Nxa1 {[%clk 0:02:02.7]} 35... Ke6 {[%clk 0:00:28.3]} 36. Nc2 {[%clk
0:02:03.1]} 36... Kd7 {[%clk 0:00:28.5]} 37. Ke2 {[%clk 0:02:01.6]} 37... Ng6
{[%clk 0:00:25.5]} 38. g3 {[%clk 0:02:01.2]} 38... Ne7 {[%clk 0:00:16.7]} 39.
Kf3 {[%clk 0:02:01.4]} 39... g6 {[%clk 0:00:15.2]} 40. Kg4 {[%clk 0:01:55.4]}
40... Nf5 {[%clk 0:00:15]} 41. Na3 {[%clk 0:01:52.6]} 41... Kc6 {[%clk 0:00:15]}
42. Nc2 {[%clk 0:01:53.5]} 42... Bc7 {[%clk 0:00:12.9]} 43. Bc1 {[%clk
0:01:52.9]} 43... Nd6 {[%clk 0:00:13]} 44. f3 {[%clk 0:01:50.8]} 44... Nf7
{[%clk 0:00:13.2]} 45. h4 {[%clk 0:01:49.5]} 45... gxh4 {[%clk 0:00:10.9]} 46.
Kxh4 {[%clk 0:01:49.9]} 46... Nd6 {[%clk 0:00:07.9]} 47. g4 {[%clk 0:01:49.7]}
47... Nf7 {[%clk 0:00:07.6]} 48. Ne1 {[%clk 0:01:42.8]} 48... g5+ {[%clk
0:00:07.2]} 49. Kh3 {[%clk 0:01:42.3]} 49... Bf4 {[%clk 0:00:06.4]} 50. Bxf4
{[%clk 0:01:42]} 50... gxf4 {[%clk 0:00:07.3]} 51. Kh4 {[%clk 0:01:40.2]} 51...
Ng5 {[%clk 0:00:07.5]} 52. Kh5 {[%clk 0:01:40.5]} 52... Kd6 {[%clk 0:00:07.5]}
53. Kg6 {[%clk 0:01:41]} 53... Ke6 {[%clk 0:00:07.9]} 54. Ng2 {[%clk 0:01:39]}
54... Nh3 {[%clk 0:00:03.7]} 55. Kg7 {[%clk 0:01:36.8]} 55... f5 {[%clk
0:00:01.7]} 56. gxf5+ {[%clk 0:01:22.2]} 56... Kxf5 {[%clk 0:00:02.6]} 57. Kf7
{[%clk 0:01:12.9]} 57... Ng1 {[%clk 0:00:02.6]} 58. Ne1 {[%clk 0:01:12.8]} 58...
Ne2 {[%clk 0:00:02.6]} 59. Ke7 {[%clk 0:01:13.5]} 59... Nxc3 {[%clk 0:00:03.1]}
60. Kd6 {[%clk 0:01:14.2]} 60... Na2 {[%clk 0:00:02.7]} 61. Nc2 {[%clk
0:01:12.3]} 61... c3 {[%clk 0:00:02.3]} 62. Kxd5 {[%clk 0:01:11.4]} 62... Kf6
{[%clk 0:00:02]} 63. Kc5 {[%clk 0:01:11.3]} 63... Ke6 {[%clk 0:00:02.5]} 64. d5+
{[%clk 0:01:10.7]} 64... Ke5 {[%clk 0:00:02.7]} 65. d6 {[%clk 0:01:11]} 65...
Ke6 {[%clk 0:00:03]} 66. Kc6 {[%clk 0:01:11.6]} 66... Nc1 {[%clk 0:00:03.4]} 67.
d7 {[%clk 0:01:12]} 67... Nd3 {[%clk 0:00:01.4]} 68. Kc7 {[%clk 0:01:11.2]}
68... Ne5 {[%clk 0:00:02.3]} 69. d8=Q {[%clk 0:01:11.1]} 69... Nf7 {[%clk
0:00:02.2]} 70. Nd4+ {[%clk 0:01:09.6]} 70... Ke5 {[%clk 0:00:01.7]} 71. Nc6+
{[%clk 0:01:10.2]} 71... Kf5 {[%clk 0:00:01.1]} 72. Qd3+ {[%clk 0:01:10.6]} 1-0

[Event "Late-Titled-Tuesday-Blitz-October-10-2023"]
[Site "Chess.com"]
[Date "2023.10.10"]
[Round "9"]
[White "IlanSchnaider"]
[Black "Grischuk"]
[Result "0-1"]
[WhiteElo "2785"]
[BlackElo "2983"]
[TimeControl "180+1"]
[EndTime "15:39:55 PDT"]
[Termination "Grischuk won on time"]

1. e4 {[%clk 0:03:00.9]} 1... c5 {[%clk 0:02:58.9]} 2. Nf3 {[%clk 0:03:00.7]}
2... d6 {[%clk 0:02:59.5]} 3. Bb5+ {[%clk 0:03:00.2]} 3... Nd7 {[%clk
0:02:59.3]} 4. a4 {[%clk 0:03:00.2]} 4... Nf6 {[%clk 0:02:56.5]} 5. Nc3 {[%clk
0:03:00.3]} 5... g6 {[%clk 0:02:56.3]} 6. a5 {[%clk 0:03:00.7]} 6... Bg7 {[%clk
0:02:56.2]} 7. Bc4 {[%clk 0:02:53.3]} 7... O-O {[%clk 0:02:55]} 8. O-O {[%clk
0:02:51.5]} 8... Nb8 {[%clk 0:02:26.3]} 9. Re1 {[%clk 0:02:41]} 9... Nc6 {[%clk
0:02:24.7]} 10. a6 {[%clk 0:02:40.9]} 10... bxa6 {[%clk 0:02:19.9]} 11. Bxa6
{[%clk 0:02:37.3]} 11... Bxa6 {[%clk 0:02:19.4]} 12. Rxa6 {[%clk 0:02:38.2]}
12... Qc8 {[%clk 0:02:20.1]} 13. Ra1 {[%clk 0:02:36.4]} 13... Nd7 {[%clk
0:02:19.1]} 14. d3 {[%clk 0:02:35.1]} 14... Qb7 {[%clk 0:02:17.4]} 15. Nd5
{[%clk 0:02:32.6]} 15... a5 {[%clk 0:02:09.9]} 16. c3 {[%clk 0:02:26.5]} 16...
e6 {[%clk 0:02:10]} 17. Ne3 {[%clk 0:02:26.1]} 17... Nb6 {[%clk 0:02:10.6]} 18.
d4 {[%clk 0:02:25.2]} 18... cxd4 {[%clk 0:02:08.8]} 19. cxd4 {[%clk 0:02:26.1]}
19... Nb4 {[%clk 0:02:08.2]} 20. e5 {[%clk 0:02:13.3]} 20... dxe5 {[%clk
0:02:09.1]} 21. dxe5 {[%clk 0:01:46.4]} 21... Rfd8 {[%clk 0:02:08.8]} 22. Bd2
{[%clk 0:01:40.7]} 22... Nd3 {[%clk 0:02:05.7]} 23. Re2 {[%clk 0:01:38.9]} 23...
a4 {[%clk 0:01:45.7]} 24. Ng4 {[%clk 0:01:36.9]} 24... Nc4 {[%clk 0:01:17.5]}
25. Bg5 {[%clk 0:01:24]} 25... Ndxb2 {[%clk 0:00:38.4]} 26. Qe1 {[%clk
0:01:08.5]} 26... Rd3 {[%clk 0:00:34.5]} 27. Bf6 {[%clk 0:01:04.2]} 27... Bf8
{[%clk 0:00:26.9]} 28. h4 {[%clk 0:01:00.8]} 28... h5 {[%clk 0:00:25.5]} 29. Ne3
{[%clk 0:00:59.5]} 29... a3 {[%clk 0:00:22.7]} 30. Nxc4 {[%clk 0:00:54.8]} 30...
Nxc4 {[%clk 0:00:23.6]} 31. Qc1 {[%clk 0:00:52.2]} 31... Qd5 {[%clk 0:00:22.3]}
32. Kh2 {[%clk 0:00:43.8]} 32... Na5 {[%clk 0:00:14.5]} 33. Qf4 {[%clk
0:00:39.9]} 33... Nb3 {[%clk 0:00:14.1]} 34. Raa2 {[%clk 0:00:37.2]} 34... Nd4
{[%clk 0:00:14.2]} 35. Nxd4 {[%clk 0:00:28.5]} 35... Rxd4 {[%clk 0:00:15.1]} 36.
Qg3 {[%clk 0:00:26.3]} 36... Rd3 {[%clk 0:00:13.5]} 37. f3 {[%clk 0:00:24.9]}
37... Rd1 {[%clk 0:00:12.4]} 38. Qf4 {[%clk 0:00:21.8]} 38... Qd4 {[%clk
0:00:12.4]} 39. Qg5 {[%clk 0:00:17]} 39... Qg1+ {[%clk 0:00:11.9]} 40. Kg3
{[%clk 0:00:17.7]} 40... Ra1 {[%clk 0:00:10.4]} 41. Rad2 {[%clk 0:00:10.6]}
41... a2 {[%clk 0:00:07.6]} 42. Rd7 {[%clk 0:00:07.2]} 42... Re1 {[%clk
0:00:04.6]} 43. Rc7 {[%clk 0:00:07.3]} 43... Rxe2 {[%clk 0:00:04.2]} 44. Kf4
{[%clk 0:00:02.7]} 44... Qe3+ {[%clk 0:00:03.6]} 45. Kg3 {[%clk 0:00:03.1]}
45... Qxg5+ {[%clk 0:00:04.5]} 46. hxg5 {[%clk 0:00:03.8]} 46... a1=Q {[%clk
0:00:05.2]} 0-1

[Event "Late-Titled-Tuesday-Blitz-October-10-2023"]
[Site "Chess.com"]
[Date "2023.10.10"]
[Round "9"]
[White "Mackster23"]
[Black "MalyDominator"]
[Result "0-1"]
[WhiteElo "2663"]
[BlackElo "2492"]
[TimeControl "180+1"]
[EndTime "15:39:55 PDT"]
[Termination "MalyDominator won by resignation"]

1. e4 {[%clk 0:03:00.9]} 1... c5 {[%clk 0:02:56.5]} 2. Nf3 {[%clk 0:03:00.7]}
2... d6 {[%clk 0:02:56.5]} 3. d4 {[%clk 0:03:01.2]} 3... cxd4 {[%clk 0:02:57.4]}
4. Nxd4 {[%clk 0:03:01.8]} 4... Nf6 {[%clk 0:02:58.1]} 5. Nc3 {[%clk 0:03:02.4]}
5... Nc6 {[%clk 0:02:58.8]} 6. Bg5 {[%clk 0:03:02.3]} 6... e6 {[%clk 0:02:59.3]}
7. Qd2 {[%clk 0:03:02.5]} 7... a6 {[%clk 0:03:00]} 8. O-O-O {[%clk 0:03:02.9]}
8... Bd7 {[%clk 0:03:00.5]} 9. f3 {[%clk 0:03:03.1]} 9... Be7 {[%clk 0:02:57.2]}
10. h4 {[%clk 0:03:01.6]} 10... h6 {[%clk 0:02:56.9]} 11. Be3 {[%clk 0:03:01.2]}
11... h5 {[%clk 0:02:57.6]} 12. Bg5 {[%clk 0:03:01]} 12... Nxd4 {[%clk
0:02:57.3]} 13. Qxd4 {[%clk 0:03:01.3]} 13... Qc7 {[%clk 0:02:56.3]} 14. f4
{[%clk 0:02:51.2]} 14... Qc5 {[%clk 0:02:50.8]} 15. Be2 {[%clk 0:01:47.5]} 15...
b5 {[%clk 0:02:42.4]} 16. Qxc5 {[%clk 0:01:43]} 16... dxc5 {[%clk 0:02:42.1]}
17. e5 {[%clk 0:01:41.6]} 17... Ng4 {[%clk 0:02:41]} 18. Bxe7 {[%clk 0:01:40.6]}
18... Kxe7 {[%clk 0:02:40.8]} 19. Bxg4 {[%clk 0:01:28.3]} 19... hxg4 {[%clk
0:02:40.5]} 20. Ne4 {[%clk 0:01:26.8]} 20... Bc6 {[%clk 0:02:40]} 21. Nxc5
{[%clk 0:01:20.8]} 21... Bxg2 {[%clk 0:02:39.6]} 22. Rd7+ {[%clk 0:01:20]} 22...
Ke8 {[%clk 0:02:39.4]} 23. Rg1 {[%clk 0:01:14.1]} 23... Bf3 {[%clk 0:02:34.1]}
24. Rc7 {[%clk 0:00:58.4]} 24... Rxh4 {[%clk 0:02:28.7]} 25. Nb7 {[%clk
0:00:49.2]} 25... Bxb7 {[%clk 0:02:14.3]} 26. Rxb7 {[%clk 0:00:50.1]} 26... Rd8
{[%clk 0:02:14.7]} 27. Ra7 {[%clk 0:00:26.6]} 27... g3 {[%clk 0:02:13.2]} 28. b3
{[%clk 0:00:17.1]} 28... Rg4 {[%clk 0:02:05.2]} 29. Rxa6 {[%clk 0:00:11.9]}
29... g2 {[%clk 0:02:05.1]} 30. Rd6 {[%clk 0:00:05.4]} 30... Rxd6 {[%clk
0:02:03.8]} 31. exd6 {[%clk 0:00:06.3]} 31... Kd7 {[%clk 0:01:17.9]} 32. Kd2
{[%clk 0:00:06.7]} 32... Kxd6 {[%clk 0:00:50.5]} 33. Ke3 {[%clk 0:00:06.7]}
33... Rg3+ {[%clk 0:00:50.9]} 34. Kf2 {[%clk 0:00:06.8]} 34... Rc3 {[%clk
0:00:51.5]} 35. Kxg2 {[%clk 0:00:06.1]} 35... Rxc2+ {[%clk 0:00:51.3]} 36. Kf3
{[%clk 0:00:06.8]} 36... Rxa2 {[%clk 0:00:49.4]} 37. Rxg7 {[%clk 0:00:06.9]}
37... f5 {[%clk 0:00:49.6]} 38. Rb7 {[%clk 0:00:06.6]} 38... Kc5 {[%clk
0:00:42.1]} 39. Re7 {[%clk 0:00:04.9]} 39... Rb2 {[%clk 0:00:38.3]} 40. Rxe6
{[%clk 0:00:04.6]} 40... Rxb3+ {[%clk 0:00:38.7]} 41. Ke2 {[%clk 0:00:04.9]}
41... Kd4 {[%clk 0:00:29.1]} 42. Re5 {[%clk 0:00:04.3]} 42... Rb2+ {[%clk
0:00:29.7]} 43. Kf3 {[%clk 0:00:03.9]} 43... b4 {[%clk 0:00:28.5]} 44. Rxf5
{[%clk 0:00:03.5]} 44... b3 {[%clk 0:00:29.1]} 45. Rb5 {[%clk 0:00:03.2]} 45...
Kc4 {[%clk 0:00:29]} 46. Rb8 {[%clk 0:00:03]} 46... Rb1 {[%clk 0:00:29.2]} 47.
Ke4 {[%clk 0:00:02.4]} 47... Kc3 {[%clk 0:00:29.4]} 48. Kf5 {[%clk 0:00:02.4]}
48... b2 {[%clk 0:00:30]} 49. Kf6 {[%clk 0:00:02.2]} 49... Rf1 {[%clk
0:00:29.6]} 50. f5 {[%clk 0:00:02.5]} 50... Rf4 {[%clk 0:00:26.7]} 51. Rc8+
{[%clk 0:00:01.8]} 51... Rc4 {[%clk 0:00:26.2]} 52. Rb8 {[%clk 0:00:01.8]} 52...
Rb4 {[%clk 0:00:26.6]} 53. Rc8+ {[%clk 0:00:02.3]} 53... Kb3 {[%clk 0:00:24.2]}
54. Rc1 {[%clk 0:00:01.8]} 54... bxc1=Q {[%clk 0:00:24.2]} 0-1

[Event "Late-Titled-Tuesday-Blitz-October-10-2023"]
[Site "Chess.com"]
[Date "2023.10.10"]
[Round "9"]
[White "cassoulet"]
[Black "BogdanDeac"]
[Result "0-1"]
[WhiteElo "2760"]
[BlackElo "3003"]
[TimeControl "180+1"]
[EndTime "15:39:56 PDT"]
[Termination "BogdanDeac won by checkmate"]

1. d4 {[%clk 0:03:00.9]} 1... Nf6 {[%clk 0:02:59.8]} 2. Bg5 {[%clk 0:03:00.3]}
2... d5 {[%clk 0:02:59]} 3. Bxf6 {[%clk 0:03:00]} 3... gxf6 {[%clk 0:02:58.6]}
4. Nf3 {[%clk 0:02:57.3]} 4... c5 {[%clk 0:02:57.9]} 5. e3 {[%clk 0:02:56.5]}
5... cxd4 {[%clk 0:02:50.4]} 6. exd4 {[%clk 0:02:55.4]} 6... Qb6 {[%clk
0:02:50.9]} 7. Nc3 {[%clk 0:02:35.6]} 7... e6 {[%clk 0:02:45.8]} 8. Bb5+ {[%clk
0:02:34.3]} 8... Bd7 {[%clk 0:02:44.7]} 9. Bxd7+ {[%clk 0:02:31.8]} 9... Nxd7
{[%clk 0:02:45.6]} 10. O-O {[%clk 0:02:19.3]} 10... Qxb2 {[%clk 0:02:44.6]} 11.
Ne2 {[%clk 0:02:03.4]} 11... Rc8 {[%clk 0:02:36.8]} 12. Rb1 {[%clk 0:01:59.9]}
12... Qxa2 {[%clk 0:02:31.3]} 13. Rxb7 {[%clk 0:01:54.7]} 13... Bd6 {[%clk
0:02:01.3]} 14. c3 {[%clk 0:01:47.9]} 14... Qa6 {[%clk 0:01:47.2]} 15. Rb1
{[%clk 0:01:41.9]} 15... Nb6 {[%clk 0:01:41]} 16. Qd2 {[%clk 0:01:37.3]} 16...
h5 {[%clk 0:01:36.8]} 17. Ra1 {[%clk 0:01:33.6]} 17... Qb7 {[%clk 0:01:36.1]}
18. h4 {[%clk 0:01:28.7]} 18... Kf8 {[%clk 0:01:23.5]} 19. Rfb1 {[%clk
0:01:23.8]} 19... Qe7 {[%clk 0:01:22.7]} 20. Qa2 {[%clk 0:01:21.1]} 20... Rc7
{[%clk 0:01:22.2]} 21. Nd2 {[%clk 0:00:59.5]} 21... Rg8 {[%clk 0:01:19.3]} 22.
Nf1 {[%clk 0:00:59.2]} 22... f5 {[%clk 0:01:18.6]} 23. g3 {[%clk 0:00:49.9]}
23... f4 {[%clk 0:01:17.2]} 24. Qd2 {[%clk 0:00:39.5]} 24... Qf6 {[%clk
0:01:06]} 25. Qd3 {[%clk 0:00:31.9]} 25... Qg6 {[%clk 0:00:48.1]} 26. Qf3 {[%clk
0:00:26.6]} 26... Qg4 {[%clk 0:00:42.1]} 27. Kg2 {[%clk 0:00:24.8]} 27... Ke7
{[%clk 0:00:33]} 28. Qxg4 {[%clk 0:00:16.8]} 28... Rxg4 {[%clk 0:00:31.4]} 29.
Kf3 {[%clk 0:00:16.3]} 29... fxg3 {[%clk 0:00:31.1]} 30. fxg3 {[%clk 0:00:16.5]}
30... Nc4 {[%clk 0:00:30.5]} 31. Ra6 {[%clk 0:00:13.1]} 31... Rg8 {[%clk
0:00:26.6]} 32. Rba1 {[%clk 0:00:09.9]} 32... Ra8 {[%clk 0:00:26.4]} 33. Nf4
{[%clk 0:00:09.5]} 33... Bxf4 {[%clk 0:00:20]} 34. Kxf4 {[%clk 0:00:10.4]} 34...
Kf6 {[%clk 0:00:20.3]} 35. Nh2 {[%clk 0:00:08]} 35... Nd2 {[%clk 0:00:18.8]} 36.
R1a3 {[%clk 0:00:07.8]} 36... Rac8 {[%clk 0:00:14.9]} 37. g4 {[%clk 0:00:06.2]}
37... Rxc3 {[%clk 0:00:11.4]} 38. Rxc3 {[%clk 0:00:04.6]} 38... Rxc3 {[%clk
0:00:11.3]} 39. gxh5 {[%clk 0:00:05.4]} 39... Rc7 {[%clk 0:00:08.1]} 40. Ng4+
{[%clk 0:00:05.5]} 40... Kg7 {[%clk 0:00:08.4]} 41. h6+ {[%clk 0:00:05]} 41...
Kh7 {[%clk 0:00:06.9]} 42. Kg5 {[%clk 0:00:05.7]} 42... Ne4+ {[%clk 0:00:06.9]}
43. Kh5 {[%clk 0:00:06.2]} 43... Rb7 {[%clk 0:00:05.4]} 44. Rc6 {[%clk 0:00:06]}
44... a5 {[%clk 0:00:03.5]} 45. Ra6 {[%clk 0:00:05.6]} 45... Ng3+ {[%clk
0:00:03.1]} 46. Kg5 {[%clk 0:00:05.3]} 46... Ne4+ {[%clk 0:00:03.8]} 47. Kh5
{[%clk 0:00:05.8]} 47... Rb3 {[%clk 0:00:04]} 48. Ra7 {[%clk 0:00:04.7]} 48...
Rf3 {[%clk 0:00:04.2]} 49. Rxa5 {[%clk 0:00:04.2]} 49... Rf5# {[%clk 0:00:04.3]}
0-1

[Event "Late-Titled-Tuesday-Blitz-October-10-2023"]
[Site "Chess.com"]
[Date "2023.10.10"]
[Round "9"]
[White "stasOR4ik"]
[Black "Dacean99"]
[Result "1-0"]
[WhiteElo "2469"]
[BlackElo "2578"]
[TimeControl "180+1"]
[EndTime "15:39:57 PDT"]
[Termination "stasOR4ik won by checkmate"]

1. e4 {[%clk 0:03:00.9]} 1... d6 {[%clk 0:02:57.6]} 2. c4 {[%clk 0:03:00]} 2...
Nf6 {[%clk 0:02:57.5]} 3. Nc3 {[%clk 0:03:00.6]} 3... g6 {[%clk 0:02:56.9]} 4.
g3 {[%clk 0:03:01.2]} 4... Bg7 {[%clk 0:02:57.4]} 5. Bg2 {[%clk 0:03:01.9]} 5...
O-O {[%clk 0:02:56.8]} 6. Nge2 {[%clk 0:03:02.6]} 6... e5 {[%clk 0:02:57.3]} 7.
O-O {[%clk 0:03:03.1]} 7... Nc6 {[%clk 0:02:57.2]} 8. h3 {[%clk 0:03:02.8]} 8...
Nd4 {[%clk 0:02:57]} 9. d3 {[%clk 0:02:59.3]} 9... a6 {[%clk 0:02:43.5]} 10. f4
{[%clk 0:02:54.6]} 10... Nh5 {[%clk 0:02:41.5]} 11. Nxd4 {[%clk 0:02:36.8]}
11... exd4 {[%clk 0:02:42.4]} 12. Ne2 {[%clk 0:02:37.2]} 12... f5 {[%clk
0:02:41.8]} 13. exf5 {[%clk 0:02:37.6]} 13... gxf5 {[%clk 0:02:42.5]} 14. Kh2
{[%clk 0:02:27.7]} 14... Qf6 {[%clk 0:02:32.1]} 15. Bd2 {[%clk 0:01:54.1]} 15...
Rb8 {[%clk 0:02:19.3]} 16. Be1 {[%clk 0:01:51.3]} 16... Qg6 {[%clk 0:02:18.4]}
17. Bf2 {[%clk 0:01:44.8]} 17... c5 {[%clk 0:02:16.9]} 18. Bf3 {[%clk
0:01:43.1]} 18... Nf6 {[%clk 0:02:15.9]} 19. b4 {[%clk 0:01:39.2]} 19... b5
{[%clk 0:02:13.4]} 20. bxc5 {[%clk 0:01:32.7]} 20... dxc5 {[%clk 0:02:14.3]} 21.
cxb5 {[%clk 0:01:30.6]} 21... axb5 {[%clk 0:02:14.7]} 22. Rc1 {[%clk 0:01:30.8]}
22... Nd7 {[%clk 0:02:00.7]} 23. Ng1 {[%clk 0:01:20.8]} 23... Bb7 {[%clk
0:01:57.4]} 24. Qb3+ {[%clk 0:01:08.3]} 24... c4 {[%clk 0:01:52.9]} 25. dxc4
{[%clk 0:01:06.5]} 25... Bxf3 {[%clk 0:01:52.6]} 26. cxb5+ {[%clk 0:00:59.1]}
26... Qf7 {[%clk 0:01:51.5]} 27. Qxf7+ {[%clk 0:00:51.1]} 27... Rxf7 {[%clk
0:01:52.4]} 28. Nxf3 {[%clk 0:00:50.1]} 28... Rxb5 {[%clk 0:01:50.8]} 29. Bxd4
{[%clk 0:00:45.3]} 29... Ra5 {[%clk 0:01:46.2]} 30. Rf2 {[%clk 0:00:41.8]} 30...
Ra3 {[%clk 0:01:42]} 31. Rc8+ {[%clk 0:00:39.5]} 31... Nf8 {[%clk 0:01:41.5]}
32. Ne5 {[%clk 0:00:28.8]} 32... Rb7 {[%clk 0:01:31.9]} 33. Bc5 {[%clk
0:00:24.2]} 33... Ra5 {[%clk 0:01:30]} 34. Rd2 {[%clk 0:00:17.8]} 34... Rab5
{[%clk 0:01:13.7]} 35. a4 {[%clk 0:00:14.4]} 35... Rb2 {[%clk 0:01:13.6]} 36.
Rxb2 {[%clk 0:00:13.9]} 36... Rxb2+ {[%clk 0:01:14.5]} 37. Kg1 {[%clk
0:00:13.6]} 37... Ra2 {[%clk 0:01:15.4]} 38. Ra8 {[%clk 0:00:12.9]} 38... Rc2
{[%clk 0:01:12.2]} 39. Bxf8 {[%clk 0:00:12.5]} 39... Bxf8 {[%clk 0:01:07.1]} 40.
Nd7 {[%clk 0:00:11.9]} 40... Kf7 {[%clk 0:01:07.5]} 41. Nxf8 {[%clk 0:00:11.3]}
41... Rd2 {[%clk 0:01:05.9]} 42. a5 {[%clk 0:00:11]} 42... h5 {[%clk 0:01:05.6]}
43. Nh7 {[%clk 0:00:10.4]} 43... Rd3 {[%clk 0:01:05]} 44. Ng5+ {[%clk
0:00:10.4]} 44... Kg6 {[%clk 0:01:04.8]} 45. Kg2 {[%clk 0:00:10.8]} 45... Rd2+
{[%clk 0:01:04.7]} 46. Kf3 {[%clk 0:00:10.7]} 46... Rd3+ {[%clk 0:01:05.6]} 47.
Kf2 {[%clk 0:00:11.2]} 47... h4 {[%clk 0:01:03.2]} 48. gxh4 {[%clk 0:00:10.2]}
48... Ra3 {[%clk 0:01:02.4]} 49. a6 {[%clk 0:00:10.1]} 49... Kg7 {[%clk
0:01:01.6]} 50. Ra7+ {[%clk 0:00:08.8]} 50... Kg6 {[%clk 0:01:01.2]} 51. Ra8
{[%clk 0:00:08.2]} 51... Kg7 {[%clk 0:01:01.7]} 52. h5 {[%clk 0:00:08.9]} 52...
Ra4 {[%clk 0:00:55.9]} 53. Kg3 {[%clk 0:00:08.4]} 53... Ra3+ {[%clk 0:00:55.6]}
54. Kh4 {[%clk 0:00:08.7]} 54... Ra4 {[%clk 0:00:48.6]} 55. Ne6+ {[%clk
0:00:08.8]} 55... Kf6 {[%clk 0:00:44.8]} 56. a7 {[%clk 0:00:09.2]} 56... Ke7
{[%clk 0:00:39.9]} 57. Rh8 {[%clk 0:00:07.3]} 57... Kxe6 {[%clk 0:00:36.4]} 58.
a8=Q {[%clk 0:00:06.9]} 58... Rxf4+ {[%clk 0:00:37.3]} 59. Kg5 {[%clk
0:00:06.6]} 59... Rd4 {[%clk 0:00:38.2]} 60. Qe8+ {[%clk 0:00:05.9]} 60... Kd5
{[%clk 0:00:38.5]} 61. Qd7+ {[%clk 0:00:06.2]} 61... Kc4 {[%clk 0:00:39.4]} 62.
Qc7+ {[%clk 0:00:06.7]} 62... Kd3 {[%clk 0:00:39.4]} 63. Rd8 {[%clk 0:00:07.5]}
63... Rxd8 {[%clk 0:00:38.6]} 64. Qxd8+ {[%clk 0:00:08.4]} 64... Ke4 {[%clk
0:00:38.8]} 65. Qe7+ {[%clk 0:00:08.6]} 65... Kf3 {[%clk 0:00:38.9]} 66. Kxf5
{[%clk 0:00:09.3]} 66... Kg3 {[%clk 0:00:39.8]} 67. h6 {[%clk 0:00:09.9]} 67...
Kxh3 {[%clk 0:00:40.7]} 68. Qg5 {[%clk 0:00:10.3]} 68... Kh2 {[%clk 0:00:41]}
69. Kf4 {[%clk 0:00:11.2]} 69... Kh1 {[%clk 0:00:41.9]} 70. Kf3 {[%clk
0:00:11.8]} 70... Kh2 {[%clk 0:00:42.8]} 71. Qg2# {[%clk 0:00:11.8]} 1-0